bitfinex-derivatives/quotes_SOLF0:USTF0_20250318
["timestamp","ask_amount","ask_price","bid_price","bid_amount"]
[1742334840195,36.48151264,124.46,124.45,4.879e-05]
[1742334843194,8.12151264,124.46,124.45,4.879e-05]
[1742334843401,36.48151264,124.46,124.45,4.879e-05]
[1742334849602,36.55785812,124.46,124.45,4.879e-05]
[1742334849808,8.19785812,124.46,124.45,4.879e-05]
[1742334851095,0.16175812,124.46,124.45,4.879e-05]
[1742334852510,0.16175812,124.46,124.45,8.03684879]
[1742334852998,0.16175812,124.46,124.45,44.43684879]
[1742334853196,0.06144126,124.47,124.46,8.0361]
[1742334853404,0.06144126,124.47,124.46,19.35048546]
[1742334868939,0.06144126,124.47,124.46,21.44168546]
[1742334869442,0.06144126,124.47,124.46,29.48168546]
[1742334869640,0.06144126,124.47,124.46,21.44168546]
[1742334872945,0.06144126,124.47,124.46,23.51208546]
[1742334875449,0.06144126,124.47,124.46,25.61558546]
[1742334884352,0.10414181,124.5,124.49,8.0342]
[1742334884554,15.09797776,124.51,124.49,39.65438546]
[1742334885061,15.09797776,124.51,124.5,8.0335]
[1742334888654,14.43135072,124.52,124.49,39.70927103]
[1742334888854,14.43135072,124.52,124.51,11.31438546]
[1742334889055,14.43135072,124.52,124.51,39.65438546]
[1742334889357,14.4618809,124.53,124.51,39.65438546]
[1742334889563,14.4618809,124.53,124.51,304.69438546]
[1742334890068,14.4618809,124.53,124.52,8.0322]
[1742334891164,14.19642264,124.54,124.53,8.0316]
[1742334891364,14.31335961,124.56,124.53,39.65438546]
[1742334891559,14.31335961,124.56,124.55,11.31438546]
[1742334891759,14.31335961,124.56,124.55,19.34468546]
[1742334896362,14.31335961,124.56,124.55,11.31438546]
[1742334897866,14.31335961,124.56,124.55,19.34468546]
[1742334904074,14.31335961,124.56,124.54,11.37519029]
[1742334904568,8.0303,124.55,124.54,11.37519029]
[1742334905068,8.0303,124.55,124.54,0.06080483]
[1742334912382,50.66355961,124.56,124.54,11.37519029]
[1742334913183,42.63335961,124.56,124.54,11.37519029]
[1742334914685,42.63335961,124.56,124.55,8.0303]
[1742334914883,14.31335961,124.56,124.55,8.0303]
[1742334920791,14.31335961,124.56,124.54,19.40579029]
[1742334921992,14.31335961,124.56,124.55,8.0303]
[1742334937909,14.31335961,124.56,124.54,13.74859756]
[1742334938097,14.31335961,124.56,124.54,5.71799756]
[1742334938905,14.31335961,124.56,124.54,0.06080483]
[1742334939105,42.63335961,124.56,124.54,0.06080483]
[1742334939710,8.0303,124.55,124.54,0.06080483]
[1742334941310,50.66325961,124.56,124.54,0.06080483]
[1742334942310,42.63335961,124.56,124.54,8.09170483]
[1742334943107,50.66305961,124.56,124.54,0.06080483]
[1742334944413,8.0303,124.55,124.54,0.06080483]
[1742334967229,50.66325961,124.56,124.54,0.06080483]
[1742334967426,50.66325961,124.56,124.54,8.09150483]
[1742334969728,42.63335961,124.56,124.54,8.09150483]
[1742334972332,42.63335961,124.56,124.54,0.06080483]
[1742334972921,8.0303,124.55,124.54,0.06080483]
[1742334988442,50.66325961,124.56,124.54,0.06080483]
[1742334989045,50.66325961,124.56,124.54,8.09150483]
[1742334989445,50.66325961,124.56,124.54,0.06080483]
[1742334990034,22.34325961,124.56,124.54,0.06080483]
[1742334990446,22.34325961,124.56,124.54,11.37519029]
[1742334990645,22.34325961,124.56,124.54,19.40609029]
[1742334990947,22.34325961,124.56,124.54,11.37519029]
[1742334994352,14.31335961,124.56,124.54,19.40609029]
[1742334994950,22.34305961,124.56,124.54,19.40609029]
[1742334997149,22.34305961,124.56,124.54,11.37519029]
[1742334999354,22.34305961,124.56,124.54,19.40599029]
[1742335009372,8.0303,124.55,124.54,0.06080483]
[1742335009559,36.3303,124.55,124.54,0.06080483]
[1742335011664,47.64468546,124.55,124.54,0.06080483]
[1742335012272,47.64468546,124.55,124.54,4.83e-06]
[1742335016374,55.66468546,124.55,124.54,4.83e-06]
[1742335016560,8.0342,124.49,124.48,11.31438546]
[1742335016765,28.3,124.49,124.47,11.1782066]
[1742335017071,28.3,124.49,124.46,56.02721187]
[1742335017770,8.0355,124.47,124.46,56.07935399]
[1742335018468,8.0351,124.48,124.46,56.07935399]
[1742335019772,8.0351,124.48,124.46,11.36652758]
[1742335020879,28.3,124.47,124.46,11.36652758]
[1742335021576,28.37930588,124.49,124.46,11.36652758]
[1742335021976,0.05930588,124.49,124.48,19.34918546]
[1742335029286,0.05930588,124.49,124.48,21.40448546]
[1742335030484,0.05930588,124.49,124.48,49.72448546]
[1742335035994,28.32,124.53,124.52,8.0322]
[1742335037392,28.32,124.53,124.51,19.4053087]
[1742335037593,36.3517,124.53,124.51,19.4053087]
[1742335038388,0.05787928,124.54,124.51,11.3728087]
[1742335038592,0.05787928,124.54,124.53,11.31438546]
[1742335038990,0.05787928,124.54,124.53,19.34598546]
[1742335048199,0.05787928,124.54,124.53,11.31438546]
[1742335050495,8.08877928,124.54,124.53,11.31438546]
[1742335056001,8.0322,124.52,124.51,11.3728087]
[1742335056402,36.3322,124.52,124.51,0.05842324]
[1742335063909,36.3322,124.52,124.51,2.324e-05]
[1742335073225,46.5135,124.52,124.51,2.324e-05]
[1742335079137,38.4735,124.52,124.51,2.324e-05]
[1742335082239,36.3322,124.52,124.51,2.324e-05]
[1742335087040,8.0322,124.52,124.51,2.324e-05]
[1742335087243,36.3322,124.52,124.51,2.324e-05]
[1742335092447,8.0322,124.52,124.51,2.324e-05]
[1742335092641,36.3322,124.52,124.51,2.324e-05]
[1742335128384,8.0322,124.52,124.51,2.324e-05]
[1742335128678,36.332,124.53,124.51,11.3144087]
[1742335128880,36.332,124.53,124.51,19.3470087]
[1742335129074,0.05787928,124.54,124.51,19.3470087]
[1742335129280,0.05787928,124.54,124.53,11.31438546]
[1742335130378,8.08877928,124.54,124.53,11.31438546]
[1742335131180,0.05787928,124.54,124.53,19.34598546]
[1742335132082,0.05787928,124.54,124.53,27.36598546]
[1742335132277,14.31335961,124.56,124.55,8.0303]
[1742335132474,14.31335961,124.56,124.55,11.31438546]
[1742335133380,22.34305961,124.56,124.55,11.31438546]
[1742335133584,8.01375961,124.56,124.55,11.31438546]
[1742335133880,8.01375961,124.56,124.55,19.34468546]
[1742335135374,8.01375961,124.56,124.55,11.31438546]
[1742335137385,8.01375961,124.56,124.55,55.64468546]
[1742335137685,14.28440544,124.57,124.55,49.72758546]
[1742335138493,22.31370544,124.57,124.55,49.72758546]
[1742335139493,14.28440544,124.57,124.55,49.72758546]
[1742335141091,28.28,124.56,124.54,0.06007702]
[1742335141589,8.0303,124.55,124.54,7.702e-05]
[1742335146991,36.3103,124.55,124.54,7.702e-05]
[1742335153006,28.28,124.55,124.54,7.702e-05]
[1742335153308,14.28440544,124.57,124.54,11.31446248]
[1742335153809,8.0297,124.56,124.54,19.34496248]
[1742335155305,22.31380544,124.57,124.55,8.0302]
[1742335156908,14.28440544,124.57,124.56,11.31438546]
[1742335157715,14.28440544,124.57,124.56,19.34408546]
[1742335179126,14.92278861,124.59,124.56,19.33438546]
[1742335179322,14.92278861,124.59,124.58,11.31438546]
[1742335179539,14.72558004,124.6,124.58,39.57438546]
[1742335180236,14.72558004,124.6,124.59,8.0277]
[1742335180439,14.60646357,124.62,124.58,304.5262077]
[1742335180628,14.60646357,124.62,124.6,11.31438546]
[1742335180833,14.60646357,124.62,124.6,39.57438546]
[1742335181238,14.60646357,124.62,124.6,47.60148546]
[1742335181635,14.66428643,124.62,124.6,39.57438546]
[1742335181832,13.8156273,124.63,124.6,39.57438546]
[1742335182140,13.8156273,124.63,124.62,11.31438546]
[1742335182639,13.8156273,124.63,124.62,19.34018546]
[1742335188238,13.8156273,124.63,124.62,47.60018546]
[1742335195648,8.0258,124.62,124.61,0.05455227]
[1742335196742,8.0264,124.61,124.6,11.31438546]
[1742335198750,8.0264,124.61,124.59,11.36832584]
[1742335199155,8.08763707,124.61,124.59,11.36832584]
[1742335200352,8.0271,124.6,124.59,0.05394038]
[1742335200650,2.0486,124.6,124.57,11.31438546]
[1742335201742,2.0486,124.6,124.57,11.36508512]
[1742335202352,10.076,124.6,124.57,19.39378512]
[1742335203552,10.076,124.6,124.58,8.0283]
[1742335204251,2.0486,124.6,124.58,8.0283]
[1742335204451,2.0486,124.6,124.57,0.05069966]
[1742335204651,28.26,124.59,124.56,11.31438546]
[1742335205554,28.26,124.59,124.56,19.34388546]
[1742335205750,30.2421,124.59,124.56,19.39858792]
[1742335205956,8.0286,124.58,124.56,19.39858792]
[1742335206357,0.059631,124.58,124.51,19.13855661]
[1742335206654,28.26,124.57,124.51,11.31438546]
[1742335206859,11.31438546,124.56,124.5,343.69929952]
[1742335207157,11.31438546,124.54,124.5,44.83294448]
[1742335207351,32.4122,124.53,124.5,34.96294448]
[1742335207657,8.0322,124.52,124.51,0.05211338]
[1742335207959,32.4729785,124.53,124.5,34.96294448]
[1742335208148,32.4729785,124.53,124.49,95.32308169]
[1742335208149,8.0326,124.52,124.49,24.89942885]
[1742335208959,8.033,124.51,124.49,24.89942885]
[1742335209152,32.4729785,124.53,124.49,24.9586475]
[1742335209350,8.0326,124.52,124.49,24.9586475]
[1742335212159,8.0326,124.52,124.5,13.69059273]
[1742335212459,40.5049785,124.53,124.5,13.69059273]
[1742335212660,32.4729785,124.53,124.51,5.65719273]
[1742335212854,4.2129785,124.53,124.51,5.65719273]
[1742335213053,0.0607785,124.53,124.52,5.65719273]
[1742335213449,0.0607785,124.53,124.52,13.68939273]
[1742335214856,0.0607785,124.53,124.52,41.94939273]
[1742335215453,12.2091,124.58,124.52,33.91719273]
[1742335215649,40.4691,124.58,124.55,11.31438546]
[1742335215853,2.0616,124.58,124.56,8.0292]
[1742335216451,0.05197008,124.58,124.57,8.029]
[1742335216651,0.05197008,124.58,124.57,19.34338546]
[1742335217658,10.1226,124.62,124.6,8.0271]
[1742335217856,2.0965,124.62,124.6,19.34148546]
[1742335218761,2.0965,124.62,124.6,19.39300928]
[1742335218960,10.17949986,124.62,124.6,11.36590928]
[1742335219160,2.15359986,124.62,124.6,11.36590928]
[1742335220260,10.17949986,124.62,124.6,11.36590928]
[1742335221370,10.17949986,124.62,124.6,0.05152382]
[1742335221668,8.0264,124.61,124.6,0.05152382]
[1742335223169,10.17969986,124.62,124.6,0.05152382]
[1742335225173,0.05709986,124.62,124.6,0.05152382]
[1742335225875,8.08289986,124.62,124.6,8.07832382]
[1742335226672,0.05709986,124.62,124.6,8.07832382]
[1742335227770,8.08299986,124.62,124.6,8.07832382]
[1742335228075,8.08299986,124.62,124.6,0.05152382]
[1742335232577,8.0264,124.61,124.6,0.05152382]
[1742335232971,28.31709986,124.62,124.53,264.84]
[1742335233270,39.57438546,124.61,124.55,11.31438546]
[1742335233475,11.31438546,124.59,124.53,276.15438546]
[1742335233677,8.0309,124.54,124.53,276.15438546]
[1742335234077,28.26,124.56,124.51,11.31438546]
[1742335234381,8.0322,124.52,124.51,11.31438546]
[1742335235073,8.0319,124.53,124.51,11.31438546]
[1742335235473,28.28,124.54,124.51,11.31438546]
[1742335236999,8.0322,124.52,124.51,11.31438546]
[1742335239594,8.0319,124.53,124.51,11.31438546]
[1742335239795,28.28,124.54,124.51,11.31438546]
[1742335241697,8.0316,124.53,124.51,11.31438546]
[1742335243404,28.28,124.54,124.5,0.06114243]
[1742335243601,11.31438546,124.53,124.5,0.06114243]
[1742335243796,11.31438546,124.51,124.45,264.94]
[1742335243990,8.0351,124.48,124.45,272.9765]
[1742335244998,8.08944193,124.48,124.45,273.02787746]
[1742335245198,0.05434193,124.48,124.45,0.05137746]
[1742335246101,8.0358,124.47,124.45,0.05137746]
[1742335246506,28.41434193,124.48,124.45,0.05137746]
[1742335247201,36.44944193,124.48,124.45,8.08807746]
[1742335250111,28.41434193,124.48,124.45,0.05137746]
[1742335252611,2.1747,124.47,124.45,0.05137746]
[1742335252810,28.36,124.46,124.45,0.05137746]
[1742335253411,36.3961,124.46,124.45,0.05137746]
[1742335253815,28.47434193,124.48,124.45,0.05137746]
[1742335254004,0.05434193,124.48,124.45,17.79820296]
[1742335254210,0.05434193,124.48,124.47,8.0355]
[1742335260110,0.05434193,124.48,124.46,8.0358]
[1742335260513,0.05434193,124.48,124.45,8.08767746]
[1742335260914,0.05434193,124.48,124.45,0.05137746]
[1742335261114,0.05434193,124.48,124.46,8.0358]
[1742335261515,8.08944193,124.48,124.46,8.0358]
[1742335262021,0.05434193,124.48,124.46,8.0358]
[1742335262316,8.08924193,124.48,124.46,8.0359]
[1742335262513,28.47434193,124.48,124.45,0.05137746]
[1742335264319,8.0361,124.46,124.45,0.05137746]
[1742335264521,36.4561,124.46,124.45,0.05137746]
[1742335267218,28.42,124.46,124.45,0.05137746]
[1742335269018,28.42,124.46,124.45,8.08817746]
[1742335270624,0.05434193,124.48,124.46,8.0357]
[1742335270811,0.05434193,124.48,124.45,11.41345722]
[1742335271014,0.05434193,124.48,124.47,11.36207976]
[1742335271211,0.05434193,124.48,124.47,19.39757976]
[1742335271422,0.05434193,124.48,124.47,8.0355]
[1742335281915,0.05434193,124.48,124.45,0.05137746]
[1742335282119,8.0361,124.46,124.45,0.05137746]
[1742335282520,28.42,124.46,124.42,11.20823612]
[1742335282823,8.038,124.43,124.42,11.20823612]
[1742335283327,8.038,124.43,124.42,44.55098948]
[1742335284328,36.53932772,124.44,124.42,52.58948948]
[1742335284730,28.50162772,124.44,124.42,52.58948948]
[1742335285630,28.50162772,124.44,124.43,8.038]
[1742335286432,28.50162772,124.44,124.42,52.58938948]
[1742335287534,36.53932772,124.44,124.42,8.0384]
[1742335292234,0.06162772,124.44,124.42,8.0384]
[1742335293134,0.06162772,124.44,124.41,11.41812303]
[1742335293639,0.06162772,124.44,124.42,8.0384]
[1742335293838,8.09932772,124.44,124.42,8.0384]
[1742335294937,0.06162772,124.44,124.41,0.05604327]
[1742335295135,28.56162772,124.44,124.41,0.05604327]
[1742335296941,8.0387,124.42,124.41,0.05604327]
[1742335300939,8.0384,124.43,124.41,8.09534327]
[1742335303045,8.0387,124.42,124.41,0.05604327]
[1742335306243,8.0384,124.43,124.41,0.05604327]
[1742335307241,8.0384,124.43,124.41,8.09534327]
[1742335307446,36.53942772,124.44,124.41,8.09534327]
[1742335307840,28.50162772,124.44,124.41,8.09534327]
[1742335308440,8.038,124.43,124.41,8.09534327]
[1742335310154,28.50162772,124.44,124.41,0.05604327]
[1742335310339,0.06162772,124.44,124.42,11.36207976]
[1742335311457,8.09902772,124.44,124.41,0.05604327]
[1742335311851,8.09902772,124.44,124.42,8.0384]
[1742335313557,8.0381,124.43,124.41,8.09504327]
[1742335313857,28.4,124.43,124.41,0.05604327]
[1742335314659,0.06162772,124.44,124.42,8.0387]
[1742335315858,8.09912772,124.44,124.42,8.0387]
[1742335316247,0.06162772,124.44,124.42,8.0387]
[1742335316452,0.06162772,124.44,124.43,8.038]
[1742335331167,0.06162772,124.44,124.42,8.0385]
[1742335331470,39.72370748,124.44,124.41,0.05604327]
[1742335331872,39.72370748,124.44,124.42,8.0383]
[1742335332277,39.72370748,124.44,124.41,0.05604327]
[1742335333675,0.06162772,124.44,124.42,28.44]
[1742335333881,0.06162772,124.44,124.43,19.40007976]
[1742335334077,0.06162772,124.44,124.43,11.36207976]
[1742335334278,0.06162772,124.44,124.42,28.44]
[1742335334479,0.06162772,124.44,124.43,8.038]
[1742335335671,0.06162772,124.44,124.43,19.40007976]
[1742335336172,44.90255337,124.53,124.43,19.40207976]
[1742335336379,28.46,124.52,124.47,11.36207976]
[1742335336772,28.46,124.52,124.45,11.36207976]
[1742335336773,11.36207976,124.49,124.45,11.36207976]
[1742335337076,11.36207976,124.47,124.4,7.71693988]
[1742335337281,11.36207976,124.45,124.4,11.36207976]
[1742335337478,265.2,124.51,124.44,11.36207976]
[1742335337479,28.58,124.51,124.44,11.36207976]
[1742335337670,8.0343,124.49,124.46,19.39787976]
[1742335337877,8.08693146,124.49,124.46,19.39787976]
[1742335338184,0.05263146,124.49,124.46,19.45498199]
[1742335338386,0.05263146,124.49,124.47,8.0354]
[1742335338683,0.05263146,124.49,124.46,11.41918199]
[1742335338879,28.71263146,124.49,124.46,0.05710223]
[1742335339484,8.0352,124.48,124.46,0.05710223]
[1742335340376,8.08713146,124.49,124.46,0.05710223]
[1742335340579,0.05263146,124.49,124.46,11.41918199]
[1742335340883,0.05263146,124.49,124.47,8.0348]
[1742335341078,0.05263146,124.49,124.47,36.7548]
[1742335341473,0.05263146,124.49,124.46,0.05710223]
[1742335341676,28.79263146,124.49,124.46,0.05710223]
[1742335341979,8.0348,124.48,124.46,0.05710223]
[1742335342386,28.79263146,124.49,124.46,0.05710223]
[1742335342687,0.05263146,124.49,124.47,11.36207976]
[1742335342877,0.05263146,124.49,124.46,11.41918199]
[1742335343275,0.05263146,124.49,124.47,8.0351]
[1742335343478,0.05263146,124.49,124.48,11.36207976]
[1742335343983,0.05263146,124.49,124.48,19.39687976]
[1742335344578,0.05263146,124.49,124.46,11.41918199]
[1742335345091,28.86,124.48,124.46,0.05710223]
[1742335345688,0.05263146,124.49,124.46,11.41918199]
[1742335345990,0.05263146,124.49,124.48,11.36207976]
[1742335346884,40.39471122,124.49,124.46,0.05710223]
[1742335347084,29.03263146,124.49,124.46,0.05710223]
[1742335347687,11.36207976,124.48,124.46,0.05710223]
[1742335347887,29.06,124.47,124.46,0.05710223]
[1742335348585,37.16703146,124.49,124.46,8.09270223]
[1742335349590,8.0348,124.48,124.46,8.09270223]
[1742335350093,29.1,124.47,124.46,0.05710223]
[1742335350293,37.1355,124.47,124.46,0.05710223]
[1742335351690,37.14,124.47,124.4,306.92325997]
[1742335351897,4.0032,124.46,124.42,11.36207976]
[1742335352385,8.0379,124.44,124.42,11.36207976]
[1742335352790,29.14,124.45,124.42,11.36207976]
[1742335352997,0.05727472,124.44,124.42,11.42355899]
[1742335353387,8.09507472,124.44,124.42,11.42355899]
[1742335353900,0.05727472,124.44,124.42,19.46215899]
[1742335354297,0.05727472,124.44,124.42,11.42355899]
[1742335354499,0.05727472,124.44,124.43,8.038]
[1742335355194,29.14,124.47,124.46,8.0361]
[1742335355392,29.16,124.49,124.46,19.39817976]
[1742335355797,37.1947,124.49,124.46,19.39817976]
[1742335356510,8.0349,124.48,124.46,11.41506437]
[1742335356700,29.21369707,124.49,124.46,11.41506437]
[1742335357094,8.0352,124.48,124.46,0.05298461]
[1742335359099,8.0352,124.48,124.46,8.08898461]
[1742335359311,8.0352,124.48,124.46,0.05298461]
[1742335360305,37.24819707,124.49,124.46,8.08868461]
[1742335361608,8.0349,124.48,124.46,8.08868461]
[1742335364106,8.0349,124.48,124.46,0.05298461]
[1742335364404,29.06,124.47,124.46,0.05298461]
[1742335364909,29.11369707,124.49,124.46,0.05298461]
[1742335365206,0.05369707,124.49,124.46,0.05298461]
[1742335366808,29.15369707,124.49,124.46,0.05298461]
[1742335367108,37.18819707,124.49,124.46,8.08878461]
[1742335367407,29.15369707,124.49,124.46,8.08878461]
[1742335367610,37.18809707,124.49,124.46,8.08878461]
[1742335369011,37.18809707,124.49,124.47,8.0354]
[1742335369211,0.05369707,124.49,124.46,0.05298461]
[1742335369414,0.05369707,124.49,124.47,17.74782996]
[1742335369608,0.05369707,124.49,124.47,46.86782996]
[1742335370110,0.05369707,124.49,124.48,8.0348]
[1742335377210,29.04,124.54,124.51,8.0324]
[1742335377609,8.0313,124.54,124.51,8.0324]
[1742335377913,29.06,124.57,124.51,46.78782996]
[1742335378415,6.3802,124.61,124.53,17.80656338]
[1742335378714,8.0283,124.59,124.53,46.80782996]
[1742335378914,0.05119458,124.58,124.56,0.05364543]
[1742335379608,0.05119458,124.58,124.56,8.08294543]
[1742335380617,0.05119458,124.58,124.56,0.05364543]
[1742335381719,13.8156273,124.63,124.57,46.82782996]
[1742335382418,13.8156273,124.63,124.55,46.86782996]
[1742335382617,8.028,124.59,124.55,54.89772996]
[1742335382917,0.06047388,124.58,124.56,0.05441811]
[1742335383616,8.08887388,124.58,124.56,0.05441811]
[1742335383917,0.06047388,124.58,124.56,0.05441811]
[1742335384309,8.029,124.57,124.56,0.05441811]
[1742335386011,8.08917388,124.58,124.56,0.05441811]
[1742335386211,0.06047388,124.58,124.56,0.05441811]
[1742335386419,0.06047388,124.58,124.57,8.029]
[1742335386619,0.06047388,124.58,124.56,0.05441811]
[1742335387018,0.06047388,124.58,124.56,8.08381811]
[1742335388514,0.06047388,124.58,124.57,8.029]
[1742335388915,0.06047388,124.58,124.56,0.05441811]
[1742335389115,0.06047388,124.58,124.56,8.08371811]
[1742335390322,0.06047388,124.58,124.57,8.029]
[1742335390926,0.06047388,124.58,124.56,8.08381811]
[1742335391525,0.06047388,124.58,124.57,8.029]
[1742335392019,0.06047388,124.58,124.57,25.77682996]
[1742335392224,29.1,124.62,124.6,8.0269]
[1742335392425,21.8410273,124.63,124.6,8.0269]
[1742335392623,13.8156273,124.63,124.59,17.74782996]
[1742335392819,13.8156273,124.63,124.59,46.86782996]
[1742335393229,29.14,124.62,124.58,264.9]
[1742335393526,8.0264,124.61,124.6,0.05577807]
[1742335402532,31.30725673,124.62,124.54,264.88]
[1742335402734,29.08,124.61,124.54,264.88]
[1742335402937,8.0303,124.55,124.54,264.88]
[1742335403638,8.08103867,124.56,124.54,264.88]
[1742335403936,0.05103867,124.56,124.55,54.87812996]
[1742335404633,29.1,124.61,124.58,8.0283]
[1742335405232,8.0273,124.6,124.58,8.0283]
[1742335405826,8.08457621,124.6,124.58,8.08292198]
[1742335407735,0.05727621,124.6,124.59,8.0277]
[1742335410339,0.05727621,124.6,124.59,25.77552996]
[1742335410537,0.05727621,124.6,124.59,54.87552996]
[1742335412230,13.8156273,124.63,124.62,8.0258]
[1742335414339,13.8156273,124.63,124.61,54.88654219]
[1742335414740,13.8156273,124.63,124.61,46.86044219]
[1742335414933,13.8156273,124.63,124.62,8.0258]
[1742335417139,13.8156273,124.63,124.62,19.35114518]
[1742335417639,13.8156273,124.63,124.62,11.32534518]
[1742335418444,21.8407273,124.63,124.62,11.32534518]
[1742335419045,13.8156273,124.63,124.62,11.32534518]
[1742335423042,13.8156273,124.63,124.62,19.35114518]
[1742335427342,13.8156273,124.63,124.62,11.32534518]
[1742335427751,21.8407273,124.63,124.62,11.32534518]
[1742335428845,13.8156273,124.63,124.62,11.32534518]
[1742335429550,13.8156273,124.63,124.62,19.35114518]
[1742335430943,15.1239446,124.65,124.62,11.32534518]
[1742335431143,15.1239446,124.65,124.64,11.32534518]
[1742335432052,15.1239446,124.65,124.64,19.34984518]
[1742335432846,14.40873616,124.66,124.65,8.0239]
[1742335433152,14.40873616,124.66,124.65,54.69035932]
[1742335438454,14.40873616,124.66,124.64,8.08588126]
[1742335438760,14.40873616,124.66,124.64,0.06158126]
[1742335438956,8.0239,124.65,124.64,0.06158126]
[1742335440559,8.0262,124.62,124.6,264.86]
[1742335440761,43.36873616,124.66,124.6,264.86]
[1742335440762,2.0531,124.64,124.6,264.86]
[1742335441056,43.31785994,124.66,124.6,282.54645932]
[1742335441748,0.05214073,124.64,124.63,8.0248]
[1742335442753,0.05214073,124.64,124.62,8.07922726]
[1742335443259,0.05214073,124.64,124.62,0.05372726]
[1742335444059,0.05214073,124.64,124.62,17.74018658]
[1742335444262,0.05214073,124.64,124.62,46.76018658]
[1742335444456,0.05214073,124.64,124.63,8.0251]
[1742335447164,14.35785994,124.66,124.62,46.76018658]
[1742335447357,14.72661129,124.67,124.65,17.68645932]
[1742335447662,14.72661129,124.67,124.65,46.72645932]
[1742335448362,14.78556877,124.67,124.65,46.78066884]
[1742335448559,14.78556877,124.67,124.66,8.0232]
[1742335450767,14.78556877,124.67,124.65,0.05420952]
[1742335451459,16.90976877,124.67,124.65,0.05420952]
[1742335451970,8.0232,124.66,124.65,0.05420952]
[1742335454371,27.09756877,124.67,124.65,0.05420952]
[1742335454968,8.0232,124.66,124.65,0.05420952]
[1742335456476,27.09756877,124.67,124.65,0.05420952]
[1742335457277,27.09756877,124.67,124.65,8.07800952]
[1742335457578,19.07466877,124.67,124.65,0.05420952]
[1742335457780,16.90976877,124.67,124.66,8.0232]
[1742335459980,14.78556877,124.67,124.66,8.0232]
[1742335462782,14.78556877,124.67,124.66,36.9432]
[1742335463977,15.08661537,124.68,124.67,8.0226]
[1742335464174,15.08661537,124.68,124.67,25.70905932]
[1742335468178,0.31101894,124.72,124.67,35.37291864]
[1742335468384,0.31101894,124.72,124.7,17.68645932]
[1742335468577,0.31101894,124.72,124.7,46.58645932]
[1742335469285,0.31101894,124.72,124.7,46.63914086]
[1742335470190,0.31101894,124.72,124.7,54.65964086]
[1742335470780,8.33041894,124.72,124.7,54.65964086]
[1742335471182,0.31101894,124.72,124.7,54.65964086]
[1742335472285,0.31101894,124.72,124.71,8.02]
[1742335473093,0.31101894,124.72,124.71,19.33144954]
[1742335474080,0.57282755,124.76,124.73,8.0184]
[1742335474282,0.57282755,124.76,124.73,19.32984954]
[1742335474490,8.59002755,124.76,124.73,11.36749685]
[1742335474693,4.0104,124.75,124.74,8.0181]
[1742335474991,12.0278,124.75,124.73,11.36749685]
[1742335475191,12.0278,124.75,124.73,19.38589685]
[1742335475388,12.0278,124.75,124.73,11.36749685]
[1742335476491,12.0278,124.75,124.73,19.38609685]
[1742335479285,4.0104,124.75,124.73,19.38609685]
[1742335479490,37.41002755,124.76,124.73,19.38609685]
[1742335479791,37.41002755,124.76,124.74,8.0179]
[1742335480286,37.41002755,124.76,124.73,11.36749685]
[1742335480287,0.57282755,124.76,124.75,11.31144954]
[1742335480492,2.0988,124.79,124.75,40.13144954]
[1742335480688,2.0988,124.79,124.78,11.31144954]
[1742335480993,8.0158,124.78,124.76,11.37273793]
[1742335481186,28.82,124.78,124.76,11.37273793]
[1742335481387,8.0161,124.77,124.76,11.37273793]
[1742335481593,8.0161,124.77,124.76,0.06128839]
[1742335481893,36.8359,124.78,124.76,0.06128839]
[1742335482890,8.0161,124.77,124.76,0.06128839]
[1742335483091,40.13144954,124.78,124.72,264.58]
[1742335483291,11.31144954,124.76,124.71,19.33114954]
[1742335483489,28.8,124.76,124.71,11.31144954]
[1742335483798,2.0641,124.77,124.73,11.31144954]
[1742335484392,0.05462444,124.76,124.74,0.05291944]
[1742335484600,0.05462444,124.76,124.75,11.31144954]
[1742335486105,0.05462444,124.76,124.74,264.61291944]
[1742335486791,8.0174,124.75,124.74,264.61291944]
[1742335487094,8.0174,124.75,124.74,0.05291944]
[1742335487902,36.87172444,124.76,124.74,0.05291944]
[1742335488201,0.05462444,124.76,124.74,0.05291944]
[1742335489905,8.0174,124.75,124.74,0.05291944]
[1742335491399,28.83462444,124.76,124.74,0.05291944]
[1742335491801,0.05462444,124.76,124.75,8.0174]
[1742335491998,0.05462444,124.76,124.74,0.05291944]
[1742335492405,0.05462444,124.76,124.74,8.07061944]
[1742335493100,8.07152444,124.76,124.74,8.07061944]
[1742335493503,0.05462444,124.76,124.75,11.31144954]
[1742335493702,0.05462444,124.76,124.75,19.32884954]
[1742335495816,0.05462444,124.76,124.74,0.05291944]
[1742335497506,8.0174,124.75,124.74,0.05291944]
[1742335497899,0.05462444,124.76,124.74,0.05291944]
[1742335498098,8.07172444,124.76,124.74,0.05291944]
[1742335498508,8.07172444,124.76,124.74,8.07081944]